[Event "Titled Tuesday Blitz April 11 Early 2023"]
[White "Steinberg, Nitzan"]
[Black "Forgacs, Attila Jr."]
[WhiteFideId "2801795"]
[BlackFideId "773654"]
[WhiteElo "2486"]
[BlackElo "2168"]
[Result "1-0"]
[Round "03"]
[TimeControl "180+2"]
[Date "2023.04.11"]
[WhiteClock "0:01:04"]
[BlackClock "0:00:14"]

1. d4 {[%clk 0:03:00]}  Nf6 {[%clk 0:02:59]} 2. Nf3 {[%clk 0:03:00]}  g6 {[%clk 0:03:00]} 3. Nbd2 {[%clk 0:03:00]}  Bg7 {[%clk 0:02:57]} 4. e4 {[%clk 0:03:00]}  d6 {[%clk 0:02:57]} 5. c3 {[%clk 0:02:59]}  O-O {[%clk 0:02:58]} 6. Bd3 {[%clk 0:02:59]}  c5 {[%clk 0:02:58]} 7. h3 {[%clk 0:02:58]}  Nc6 {[%clk 0:02:51]} 8. O-O {[%clk 0:02:58]}  e5 {[%clk 0:02:48]} 9. dxe5 {[%clk 0:02:48]}  dxe5 {[%clk 0:02:47]} 10. Qe2 {[%clk 0:02:33]}  Be6 {[%clk 0:02:45]} 11. Rd1 {[%clk 0:02:24]}  Nh5 {[%clk 0:02:45]} 12. Bc4 {[%clk 0:02:14]}  Nf4 {[%clk 0:02:40]} 13. Qf1 {[%clk 0:02:13]}  Qe7 {[%clk 0:02:37]} 14. Bxe6 {[%clk 0:02:12]}  Qxe6 {[%clk 0:02:36]} 15. Nc4 {[%clk 0:02:12]}  Rad8 {[%clk 0:02:28]} 16. Be3 {[%clk 0:02:03]}  b6 {[%clk 0:02:22]} 17. a4 {[%clk 0:02:02]}  f5 {[%clk 0:02:10]} 18. exf5 {[%clk 0:01:56]}  gxf5 {[%clk 0:02:05]} 19. Bxf4 {[%clk 0:01:55]}  exf4 {[%clk 0:02:05]} 20. Re1 {[%clk 0:01:55]}  Qg6 {[%clk 0:01:56]} 21. Rad1 {[%clk 0:01:52]}  Kh8 {[%clk 0:01:55]} 22. Rxd8 {[%clk 0:01:51]}  Rxd8 {[%clk 0:01:54]} 23. Rd1 {[%clk 0:01:51]}  Rxd1 {[%clk 0:01:48]} 24. Qxd1 {[%clk 0:01:52]}  Qe6 {[%clk 0:01:45]} 25. Qd3 {[%clk 0:01:50]}  Bf6 {[%clk 0:01:39]} 26. Nd6 {[%clk 0:01:38]}  Ne7 {[%clk 0:01:20]} 27. Nb5 {[%clk 0:01:33]}  a6 {[%clk 0:00:46]} 28. Nc7 {[%clk 0:01:32]}  Qc8 {[%clk 0:00:46]} 29. Qd6 {[%clk 0:01:26]}  Kg7 {[%clk 0:00:37]} 30. Qxb6 {[%clk 0:01:25]}  Qd7 {[%clk 0:00:31]} 31. Ne6+ {[%clk 0:01:23]}  Kf7 {[%clk 0:00:30]} 32. Nxc5 {[%clk 0:01:16]}  Qd1+ {[%clk 0:00:27]} 33. Kh2 {[%clk 0:01:16]}  Nd5 {[%clk 0:00:22]} 34. Qe6+ {[%clk 0:01:15]}  Kg7 {[%clk 0:00:18]} 35. Qxf5 {[%clk 0:01:12]}  Ne7 {[%clk 0:00:15]} 36. Qg4+ {[%clk 0:01:06]}  Kf7 {[%clk 0:00:14]} 37. Ng5+ {[%clk 0:01:04]}  Bxg5 {[%clk 0:00:14]} 38. Qxd1 {[%clk 0:01:04]} 1-0


[Site "https://www.chess.com"]

[Event "Titled Tuesday Blitz April 11 Early 2023"]
[White "Gholami Orimi, Mahdi"]
[Black "Francisco Guecamburu, Candela Be"]
[WhiteFideId "12558486"]
[BlackFideId "160911"]
[WhiteElo "2363"]
[BlackElo "2326"]
[Result "1-0"]
[Round "03"]
[TimeControl "180+2"]
[Date "2023.04.11"]
[WhiteClock "0:00:43"]
[BlackClock "0:00:02"]

1. e4 {[%clk 0:02:56]}  c5 {[%clk 0:02:59]} 2. Nf3 {[%clk 0:02:56]}  g6 {[%clk 0:03:00]} 3. d4 {[%clk 0:02:55]}  cxd4 {[%clk 0:03:01]} 4. Nxd4 {[%clk 0:02:53]}  Bg7 {[%clk 0:03:01]} 5. c4 {[%clk 0:02:54]}  Nc6 {[%clk 0:03:01]} 6. Be3 {[%clk 0:02:54]}  Nf6 {[%clk 0:03:01]} 7. f3 {[%clk 0:02:48]}  d6 {[%clk 0:03:00]} 8. Nc3 {[%clk 0:02:49]}  O-O {[%clk 0:02:59]} 9. Be2 {[%clk 0:02:49]}  Nxd4 {[%clk 0:02:59]} 10. Bxd4 {[%clk 0:02:50]}  Bd7 {[%clk 0:02:59]} 11. Qd2 {[%clk 0:02:46]}  a5 {[%clk 0:02:59]} 12. h4 {[%clk 0:02:46]}  a4 {[%clk 0:02:54]} 13. O-O-O {[%clk 0:02:42]}  Qa5 {[%clk 0:02:47]} 14. h5 {[%clk 0:02:38]}  Rac8 {[%clk 0:02:34]} 15. Kb1 {[%clk 0:02:36]}  e5 {[%clk 0:02:16]} 16. Be3 {[%clk 0:02:32]}  Be6 {[%clk 0:02:11]} 17. Bh6 {[%clk 0:02:09]}  Bxc4 {[%clk 0:02:04]} 18. Bxg7 {[%clk 0:02:04]}  Kxg7 {[%clk 0:02:02]} 19. hxg6 {[%clk 0:02:04]}  fxg6 {[%clk 0:02:01]} 20. Qh6+ {[%clk 0:02:01]}  Kg8 {[%clk 0:01:56]} 21. Rxd6 {[%clk 0:01:56]}  Qc7 {[%clk 0:00:51]} 22. Bxc4+ {[%clk 0:01:52]}  Qxc4 {[%clk 0:00:52]} 23. Rxf6 {[%clk 0:01:49]}  Rxf6 {[%clk 0:00:52]} 24. Qxh7+ {[%clk 0:01:49]}  Kf8 {[%clk 0:00:53]} 25. Qh8+ {[%clk 0:01:45]}  Kf7 {[%clk 0:00:36]} 26. Qh7+ {[%clk 0:01:44]}  Kf8 {[%clk 0:00:36]} 27. Qd7 {[%clk 0:01:26]}  Kg8 {[%clk 0:00:24]} 28. a3 {[%clk 0:01:11]}  Rf7 {[%clk 0:00:22]} 29. Qh3 {[%clk 0:01:11]}  Rg7 {[%clk 0:00:18]} 30. Nd5 {[%clk 0:01:09]}  Qc6 {[%clk 0:00:12]} 31. Qh4 {[%clk 0:00:46]}  Kf7 {[%clk 0:00:11]} 32. Qe7+ {[%clk 0:00:45]}  Kg8 {[%clk 0:00:09]} 33. Qxe5 {[%clk 0:00:46]}  Qc2+ {[%clk 0:00:08]} 34. Ka1 {[%clk 0:00:46]}  Qc5 {[%clk 0:00:05]} 35. Qe6+ {[%clk 0:00:42]}  Rf7 {[%clk 0:00:02]} 36. Nf6+ {[%clk 0:00:42]}  Kf8 {[%clk 0:00:01]} 37. Rh8+ {[%clk 0:00:42]}  Kg7 {[%clk 0:00:02]} 38. Rh7+ {[%clk 0:00:43]} 1-0


[Site "https://www.chess.com"]

[Event "Titled Tuesday Blitz April 11 Early 2023"]
[White "Zakhartsov, Vladimir"]
[Black "Dobre, Claudiu-Cristian"]
[WhiteFideId "4145097"]
[BlackFideId "1211854"]
[WhiteElo "2497"]
[BlackElo "2207"]
[Result "1-0"]
[Round "03"]
[TimeControl "180+2"]
[Date "2023.04.11"]
[WhiteClock "0:00:13"]
[BlackClock "0:00:03"]

1. e4 {[%clk 0:03:00]}  Nc6 {[%clk 0:02:59]} 2. Nf3 {[%clk 0:03:01]}  d6 {[%clk 0:02:59]} 3. d4 {[%clk 0:03:00]}  Nf6 {[%clk 0:03:00]} 4. Nc3 {[%clk 0:03:00]}  e5 {[%clk 0:03:00]} 5. d5 {[%clk 0:02:53]}  Ne7 {[%clk 0:02:58]} 6. h3 {[%clk 0:02:53]}  Ng6 {[%clk 0:02:52]} 7. Be3 {[%clk 0:02:52]}  Be7 {[%clk 0:02:48]} 8. Qd2 {[%clk 0:02:51]}  O-O {[%clk 0:02:47]} 9. g4 {[%clk 0:02:50]}  c6 {[%clk 0:02:42]} 10. g5 {[%clk 0:02:34]}  Nh5 {[%clk 0:02:30]} 11. O-O-O {[%clk 0:02:33]}  Ngf4 {[%clk 0:02:07]} 12. Kb1 {[%clk 0:02:15]}  c5 {[%clk 0:02:06]} 13. Ne2 {[%clk 0:02:13]}  Bxg5 {[%clk 0:01:52]} 14. Rg1 {[%clk 0:02:04]}  Bh6 {[%clk 0:01:48]} 15. Ng3 {[%clk 0:02:04]}  Nf6 {[%clk 0:01:13]} 16. h4 {[%clk 0:01:57]}  Kh8 {[%clk 0:01:12]} 17. Ng5 {[%clk 0:01:55]}  N4h5 {[%clk 0:01:02]} 18. Be2 {[%clk 0:01:40]}  Nxg3 {[%clk 0:01:02]} 19. fxg3 {[%clk 0:01:40]}  Bxg5 {[%clk 0:01:00]} 20. hxg5 {[%clk 0:01:39]}  Nxe4 {[%clk 0:00:59]} 21. Qc1 {[%clk 0:01:35]}  Bf5 {[%clk 0:00:52]} 22. Bd3 {[%clk 0:01:31]}  Bg6 {[%clk 0:00:46]} 23. Rg2 {[%clk 0:01:24]}  f5 {[%clk 0:00:43]} 24. gxf6 {[%clk 0:01:24]}  Qxf6 {[%clk 0:00:42]} 25. Rh1 {[%clk 0:01:23]}  Kg8 {[%clk 0:00:42]} 26. a3 {[%clk 0:01:22]}  Rac8 {[%clk 0:00:38]} 27. Be2 {[%clk 0:01:01]}  c4 {[%clk 0:00:32]} 28. Ka2 {[%clk 0:00:59]}  c3 {[%clk 0:00:32]} 29. b3 {[%clk 0:00:59]}  a6 {[%clk 0:00:25]} 30. Rf1 {[%clk 0:00:53]}  Qe7 {[%clk 0:00:22]} 31. Rh1 {[%clk 0:00:54]}  Rf6 {[%clk 0:00:17]} 32. Bg4 {[%clk 0:00:51]}  Rcf8 {[%clk 0:00:16]} 33. Be6+ {[%clk 0:00:52]}  Bf7 {[%clk 0:00:17]} 34. Rh4 {[%clk 0:00:49]}  Nc5 {[%clk 0:00:15]} 35. Bg5 {[%clk 0:00:46]}  Nxe6 {[%clk 0:00:15]} 36. dxe6 {[%clk 0:00:46]}  Qxe6 {[%clk 0:00:15]} 37. Bxf6 {[%clk 0:00:46]}  Qxf6 {[%clk 0:00:15]} 38. Qe3 {[%clk 0:00:45]}  Bg6 {[%clk 0:00:14]} 39. Qxc3 {[%clk 0:00:45]}  Qf3 {[%clk 0:00:13]} 40. Qd2 {[%clk 0:00:40]}  d5 {[%clk 0:00:13]} 41. Rhh2 {[%clk 0:00:37]}  Rc8 {[%clk 0:00:12]} 42. Rf2 {[%clk 0:00:34]}  Qe4 {[%clk 0:00:12]} 43. Qd1 {[%clk 0:00:32]}  d4 {[%clk 0:00:11]} 44. Re2 {[%clk 0:00:32]}  Qd5 {[%clk 0:00:11]} 45. Rd2 {[%clk 0:00:30]}  a5 {[%clk 0:00:10]} 46. a4 {[%clk 0:00:30]}  Qc5 {[%clk 0:00:10]} 47. Qg4 {[%clk 0:00:28]}  Rd8 {[%clk 0:00:10]} 48. Rhe2 {[%clk 0:00:23]}  e4 {[%clk 0:00:10]} 49. Qe6+ {[%clk 0:00:19]}  Kh8 {[%clk 0:00:10]} 50. Rh2 {[%clk 0:00:19]}  Qc6 {[%clk 0:00:08]} 51. Qe5 {[%clk 0:00:18]}  d3 {[%clk 0:00:07]} 52. cxd3 {[%clk 0:00:17]}  exd3 {[%clk 0:00:07]} 53. Qxa5 {[%clk 0:00:17]}  Rc8 {[%clk 0:00:06]} 54. Rhf2 {[%clk 0:00:17]}  Qc2+ {[%clk 0:00:05]} 55. Rxc2 {[%clk 0:00:15]}  dxc2 {[%clk 0:00:04]} 56. Rf1 {[%clk 0:00:13]}  h6 {[%clk 0:00:03]} 57. Rc1 {[%clk 0:00:13]} 1-0


[Site "https://www.chess.com"]

[Event "Titled Tuesday Blitz April 11 Early 2023"]
[White "Zemlyanskii, Ivan"]
[Black "Budrewicz, Krzysztof"]
[WhiteFideId "24249971"]
[BlackFideId "1127950"]
[WhiteElo "2419"]
[BlackElo "2230"]
[Result "0-1"]
[Round "03"]
[TimeControl "180+2"]
[Date "2023.04.11"]
[WhiteClock "0:00:05"]
[BlackClock "0:00:40"]

1. d4 {[%clk 0:03:00]}  Nf6 {[%clk 0:02:59]} 2. c4 {[%clk 0:02:59]}  g6 {[%clk 0:03:00]} 3. h4 {[%clk 0:02:58]}  Bg7 {[%clk 0:02:57]} 4. Nc3 {[%clk 0:02:58]}  d6 {[%clk 0:02:55]} 5. e4 {[%clk 0:02:58]}  O-O {[%clk 0:02:53]} 6. Be2 {[%clk 0:02:58]}  c5 {[%clk 0:02:49]} 7. d5 {[%clk 0:02:58]}  e6 {[%clk 0:02:50]} 8. h5 {[%clk 0:02:54]}  exd5 {[%clk 0:02:48]} 9. exd5 {[%clk 0:02:54]}  Re8 {[%clk 0:02:47]} 10. h6 {[%clk 0:02:53]}  Bh8 {[%clk 0:02:47]} 11. Bg5 {[%clk 0:02:53]}  a6 {[%clk 0:02:39]} 12. Kf1 {[%clk 0:02:35]}  b5 {[%clk 0:02:35]} 13. cxb5 {[%clk 0:02:33]}  axb5 {[%clk 0:02:35]} 14. Bxb5 {[%clk 0:02:33]}  Ba6 {[%clk 0:02:34]} 15. Bxa6 {[%clk 0:02:03]}  Rxa6 {[%clk 0:02:31]} 16. Qf3 {[%clk 0:02:01]}  Nbd7 {[%clk 0:02:30]} 17. Nge2 {[%clk 0:01:52]}  Qb6 {[%clk 0:02:26]} 18. b3 {[%clk 0:01:45]}  Ne4 {[%clk 0:02:02]} 19. Nxe4 {[%clk 0:01:12]}  Bxa1 {[%clk 0:02:02]} 20. Rh4 {[%clk 0:01:12]}  f5 {[%clk 0:01:56]} 21. N4c3 {[%clk 0:00:57]}  Ne5 {[%clk 0:01:50]} 22. Qe3 {[%clk 0:00:53]}  Raa8 {[%clk 0:01:48]} 23. Qc1 {[%clk 0:00:52]}  Bxc3 {[%clk 0:01:47]} 24. Qxc3 {[%clk 0:00:48]}  Qa5 {[%clk 0:01:41]} 25. Qxa5 {[%clk 0:00:36]}  Rxa5 {[%clk 0:01:41]} 26. Nc3 {[%clk 0:00:36]}  Rb8 {[%clk 0:01:32]} 27. Bd2 {[%clk 0:00:35]}  Ra6 {[%clk 0:01:29]} 28. Ke2 {[%clk 0:00:32]}  Rb4 {[%clk 0:01:28]} 29. Rxb4 {[%clk 0:00:26]}  cxb4 {[%clk 0:01:28]} 30. Na4 {[%clk 0:00:27]}  Ra5 {[%clk 0:01:24]} 31. Bxb4 {[%clk 0:00:27]}  Rxd5 {[%clk 0:01:25]} 32. Nc3 {[%clk 0:00:17]}  Rd4 {[%clk 0:01:25]} 33. Ba3 {[%clk 0:00:17]}  Kf7 {[%clk 0:01:20]} 34. Nb5 {[%clk 0:00:17]}  Rd5 {[%clk 0:01:18]} 35. Nxd6+ {[%clk 0:00:17]}  Ke6 {[%clk 0:01:18]} 36. Nb7 {[%clk 0:00:17]}  Rb5 {[%clk 0:01:15]} 37. Nc5+ {[%clk 0:00:17]}  Kd5 {[%clk 0:01:16]} 38. Na4 {[%clk 0:00:17]}  Ra5 {[%clk 0:01:15]} 39. Bb2 {[%clk 0:00:17]}  Ng4 {[%clk 0:01:14]} 40. f3 {[%clk 0:00:14]}  Nxh6 {[%clk 0:01:14]} 41. Nc3+ {[%clk 0:00:13]}  Kc6 {[%clk 0:01:14]} 42. a4 {[%clk 0:00:13]}  Ra8 {[%clk 0:01:13]} 43. b4 {[%clk 0:00:13]}  Nf7 {[%clk 0:01:12]} 44. b5+ {[%clk 0:00:13]}  Kc5 {[%clk 0:01:12]} 45. Kd3 {[%clk 0:00:13]}  Nd8 {[%clk 0:01:10]} 46. Ba3+ {[%clk 0:00:13]}  Kb6 {[%clk 0:01:08]} 47. Nd5+ {[%clk 0:00:13]}  Kb7 {[%clk 0:01:07]} 48. Nc3 {[%clk 0:00:13]}  Ne6 {[%clk 0:01:07]} 49. Bb4 {[%clk 0:00:13]}  Nc7 {[%clk 0:01:06]} 50. a5 {[%clk 0:00:13]}  Rd8+ {[%clk 0:01:03]} 51. Kc4 {[%clk 0:00:14]}  Rd2 {[%clk 0:00:56]} 52. Na4 {[%clk 0:00:11]}  Rc2+ {[%clk 0:00:55]} 53. Kb3 {[%clk 0:00:10]}  Rxg2 {[%clk 0:00:53]} 54. Nc5+ {[%clk 0:00:10]}  Ka8 {[%clk 0:00:51]} 55. b6 {[%clk 0:00:11]}  Nd5 {[%clk 0:00:51]} 56. Kc4 {[%clk 0:00:11]}  Nxb4 {[%clk 0:00:49]} 57. Kxb4 {[%clk 0:00:11]}  Rb2+ {[%clk 0:00:50]} 58. Kc4 {[%clk 0:00:12]}  h5 {[%clk 0:00:49]} 59. Kd5 {[%clk 0:00:11]}  h4 {[%clk 0:00:50]} 60. Kc6 {[%clk 0:00:12]}  h3 {[%clk 0:00:49]} 61. a6 {[%clk 0:00:10]}  h2 {[%clk 0:00:45]} 62. Ne6 {[%clk 0:00:07]}  Rc2+ {[%clk 0:00:42]} 63. Kd7 {[%clk 0:00:05]}  h1=Q {[%clk 0:00:41]} 64. Nc7+ {[%clk 0:00:05]}  Rxc7+ {[%clk 0:00:41]} 65. bxc7 {[%clk 0:00:04]}  Qd1+ {[%clk 0:00:41]} 66. Kc6 {[%clk 0:00:02]}  Qxf3+ {[%clk 0:00:40]} 67. Kd7 {[%clk 0:00:02]}  Qd3+ {[%clk 0:00:41]} 68. Ke7 {[%clk 0:00:03]}  Qe4+ {[%clk 0:00:39]} 69. Kd7 {[%clk 0:00:04]}  Qd5+ {[%clk 0:00:39]} 70. Ke7 {[%clk 0:00:04]}  Qc5+ {[%clk 0:00:40]} 71. Kd7 {[%clk 0:00:05]}  Qxc7+ {[%clk 0:00:40]} 72. Kxc7 {[%clk 0:00:05]}  f4 {[%clk 0:00:40]} 0-1


[Site "https://www.chess.com"]

[Event "Titled Tuesday Blitz April 11 Early 2023"]
[White "Yelisieiev, Yevhenii"]
[Black "Harsh Suresh"]
[WhiteFideId "14139642"]
[BlackFideId "45018464"]
[WhiteElo "2425"]
[BlackElo "2227"]
[Result "1-0"]
[Round "03"]
[TimeControl "180+2"]
[Date "2023.04.11"]
[WhiteClock "0:00:23"]
[BlackClock "0:00:08"]

1. Nf3 {[%clk 0:03:00]}  g6 {[%clk 0:02:59]} 2. d4 {[%clk 0:03:00]}  Bg7 {[%clk 0:03:00]} 3. g3 {[%clk 0:03:01]}  Nf6 {[%clk 0:02:57]} 4. Bg2 {[%clk 0:03:01]}  O-O {[%clk 0:02:58]} 5. O-O {[%clk 0:03:02]}  d5 {[%clk 0:02:58]} 6. c3 {[%clk 0:03:01]}  Bg4 {[%clk 0:02:57]} 7. Ne5 {[%clk 0:03:01]}  Be6 {[%clk 0:02:57]} 8. Qb3 {[%clk 0:02:58]}  Qc8 {[%clk 0:02:55]} 9. a4 {[%clk 0:02:57]}  a5 {[%clk 0:02:54]} 10. c4 {[%clk 0:02:55]}  c6 {[%clk 0:02:50]} 11. c5 {[%clk 0:02:52]}  Nfd7 {[%clk 0:02:49]} 12. f4 {[%clk 0:02:52]}  f6 {[%clk 0:02:48]} 13. Nd3 {[%clk 0:02:51]}  Bg4 {[%clk 0:02:47]} 14. e4 {[%clk 0:02:51]}  e6 {[%clk 0:02:35]} 15. Re1 {[%clk 0:02:48]}  dxe4 {[%clk 0:02:34]} 16. Bxe4 {[%clk 0:02:43]}  f5 {[%clk 0:02:34]} 17. Qxe6+ {[%clk 0:02:38]}  Kh8 {[%clk 0:02:34]} 18. Bg2 {[%clk 0:02:36]}  Bxd4+ {[%clk 0:02:21]} 19. Be3 {[%clk 0:02:37]}  Bg7 {[%clk 0:02:15]} 20. Bd2 {[%clk 0:02:13]}  Na6 {[%clk 0:02:10]} 21. Bc3 {[%clk 0:02:14]}  Nf6 {[%clk 0:02:00]} 22. Qc4 {[%clk 0:02:05]}  Nc7 {[%clk 0:01:53]} 23. Nd2 {[%clk 0:01:57]}  Ncd5 {[%clk 0:01:49]} 24. Nb3 {[%clk 0:01:56]}  Nxc3 {[%clk 0:01:48]} 25. Qxc3 {[%clk 0:01:54]}  Ne4 {[%clk 0:01:26]} 26. Qc4 {[%clk 0:01:48]}  Qc7 {[%clk 0:01:26]} 27. Nd4 {[%clk 0:01:46]}  Nd2 {[%clk 0:01:16]} 28. Ne6 {[%clk 0:01:33]}  Qd7 {[%clk 0:00:49]} 29. Qc2 {[%clk 0:01:28]}  Nf3+ {[%clk 0:00:49]} 30. Bxf3 {[%clk 0:01:25]}  Bxf3 {[%clk 0:00:50]} 31. Nxg7 {[%clk 0:01:25]}  Qxg7 {[%clk 0:00:43]} 32. Qc3 {[%clk 0:01:10]}  Qxc3 {[%clk 0:00:41]} 33. bxc3 {[%clk 0:01:11]}  Be4 {[%clk 0:00:42]} 34. Ne5 {[%clk 0:01:11]}  Rad8 {[%clk 0:00:41]} 35. Red1 {[%clk 0:01:09]}  Kg7 {[%clk 0:00:40]} 36. Nc4 {[%clk 0:01:06]}  Kf6 {[%clk 0:00:19]} 37. Nxa5 {[%clk 0:00:58]}  Rxd1+ {[%clk 0:00:16]} 38. Rxd1 {[%clk 0:00:58]}  Ra8 {[%clk 0:00:17]} 39. Nxb7 {[%clk 0:00:45]}  Rxa4 {[%clk 0:00:17]} 40. Nd6 {[%clk 0:00:46]}  Bd5 {[%clk 0:00:18]} 41. c4 {[%clk 0:00:45]}  Bf3 {[%clk 0:00:12]} 42. Rd3 {[%clk 0:00:44]}  Be4 {[%clk 0:00:06]} 43. Nxe4+ {[%clk 0:00:44]}  fxe4 {[%clk 0:00:07]} 44. Rd6+ {[%clk 0:00:45]}  Kf5 {[%clk 0:00:07]} 45. Kf2 {[%clk 0:00:38]}  Rxc4 {[%clk 0:00:07]} 46. Rxc6 {[%clk 0:00:38]}  Rc3 {[%clk 0:00:06]} 47. Rc8 {[%clk 0:00:35]}  Kg4 {[%clk 0:00:05]} 48. Rh8 {[%clk 0:00:22]}  h5 {[%clk 0:00:05]} 49. Rg8 {[%clk 0:00:20]}  Kh3 {[%clk 0:00:05]} 50. Rxg6 {[%clk 0:00:19]}  Rxc5 {[%clk 0:00:04]} 51. Rg5 {[%clk 0:00:20]}  Rc2+ {[%clk 0:00:04]} 52. Ke3 {[%clk 0:00:21]}  Kxh2 {[%clk 0:00:04]} 53. Kxe4 {[%clk 0:00:20]}  Rc3 {[%clk 0:00:04]} 54. f5 {[%clk 0:00:19]}  Rxg3 {[%clk 0:00:04]} 55. Rxh5+ {[%clk 0:00:20]}  Kg2 {[%clk 0:00:04]} 56. f6 {[%clk 0:00:20]}  Ra3 {[%clk 0:00:02]} 57. f7 {[%clk 0:00:20]}  Ra8 {[%clk 0:00:02]} 58. Rg5+ {[%clk 0:00:20]}  Kh3 {[%clk 0:00:02]} 59. Rg8 {[%clk 0:00:21]}  Ra4+ {[%clk 0:00:02]} 60. Kd5 {[%clk 0:00:21]}  Ra5+ {[%clk 0:00:02]} 61. Kc4 {[%clk 0:00:21]}  Rf5 {[%clk 0:00:02]} 62. f8=Q {[%clk 0:00:21]}  Rxf8 {[%clk 0:00:03]} 63. Rxf8 {[%clk 0:00:22]}  Kg4 {[%clk 0:00:04]} 64. Kd4 {[%clk 0:00:22]}  Kg5 {[%clk 0:00:04]} 65. Ke4 {[%clk 0:00:23]}  Kg6 {[%clk 0:00:05]} 66. Ke5 {[%clk 0:00:23]}  Kg7 {[%clk 0:00:06]} 67. Rf2 {[%clk 0:00:23]}  Kh7 {[%clk 0:00:07]} 68. Rg2 {[%clk 0:00:22]}  Kh6 {[%clk 0:00:07]} 69. Kf5 {[%clk 0:00:23]}  Kh5 {[%clk 0:00:08]} 70. Rh2# {[%clk 0:00:23]} 1-0


[Site "https://www.chess.com"]

[Event "Titled Tuesday Blitz April 11 Early 2023"]
[White "Turzo, Attila"]
[Black "Hambleton, Aman"]
[WhiteFideId "704954"]
[BlackFideId "2606577"]
[WhiteElo "2505"]
[BlackElo "2511"]
[Result "0-1"]
[Round "03"]
[TimeControl "180+2"]
[Date "2023.04.11"]
[WhiteClock "0:00:08"]
[BlackClock "0:00:02"]

1. e4 {[%clk 0:03:00]}  b6 {[%clk 0:02:58]} 2. d4 {[%clk 0:02:55]}  Bb7 {[%clk 0:02:58]} 3. Bd3 {[%clk 0:02:50]}  e6 {[%clk 0:02:58]} 4. Nf3 {[%clk 0:02:48]}  d5 {[%clk 0:02:58]} 5. e5 {[%clk 0:02:42]}  Ba6 {[%clk 0:02:58]} 6. Bxa6 {[%clk 0:02:33]}  Nxa6 {[%clk 0:02:59]} 7. O-O {[%clk 0:02:32]}  Qd7 {[%clk 0:02:58]} 8. Qe2 {[%clk 0:02:16]}  Nb8 {[%clk 0:02:56]} 9. a4 {[%clk 0:02:14]}  Nc6 {[%clk 0:02:31]} 10. c3 {[%clk 0:02:01]}  Na5 {[%clk 0:02:24]} 11. Nbd2 {[%clk 0:02:01]}  c5 {[%clk 0:02:24]} 12. b3 {[%clk 0:01:56]}  Nh6 {[%clk 0:01:49]} 13. Bb2 {[%clk 0:01:50]}  Be7 {[%clk 0:01:41]} 14. c4 {[%clk 0:01:46]}  dxc4 {[%clk 0:01:31]} 15. dxc5 {[%clk 0:01:34]}  cxb3 {[%clk 0:00:24]} 16. cxb6 {[%clk 0:01:24]}  axb6 {[%clk 0:00:25]} 17. Ne4 {[%clk 0:01:07]}  O-O {[%clk 0:00:22]} 18. Nf6+ {[%clk 0:01:00]}  Bxf6 {[%clk 0:00:02]} 19. exf6 {[%clk 0:01:00]}  g6 {[%clk 0:00:02]} 20. Bc1 {[%clk 0:00:34]}  Nf5 {[%clk 0:00:02]} 21. g4 {[%clk 0:00:35]}  Nd4 {[%clk 0:00:02]} 22. Nxd4 {[%clk 0:00:21]}  Qxd4 {[%clk 0:00:03]} 23. Bb2 {[%clk 0:00:22]}  Qf4 {[%clk 0:00:02]} 24. Be5 {[%clk 0:00:16]}  Qg5 {[%clk 0:00:02]} 25. f4 {[%clk 0:00:15]}  Qh4 {[%clk 0:00:02]} 26. Rad1 {[%clk 0:00:11]}  Nc6 {[%clk 0:00:02]} 27. Rd3 {[%clk 0:00:09]}  Nxe5 {[%clk 0:00:02]} 28. fxe5 {[%clk 0:00:10]}  Rxa4 {[%clk 0:00:02]} 29. Rg3 {[%clk 0:00:08]}  Ra2 {[%clk 0:00:02]} 0-1


[Site "https://www.chess.com"]

[Event "Titled Tuesday Blitz April 11 Early 2023"]
[White "Aldokhin, Ivan"]
[Black "Dominguez Pons, Eric"]
[WhiteFideId "24115720"]
[BlackFideId "2262916"]
[WhiteElo "2322"]
[BlackElo "2302"]
[Result "0-1"]
[Round "03"]
[TimeControl "180+2"]
[Date "2023.04.11"]
[WhiteClock "0:00:02"]
[BlackClock "0:00:35"]

1. e4 {[%clk 0:02:56]}  c6 {[%clk 0:02:57]} 2. Nc3 {[%clk 0:02:49]}  d5 {[%clk 0:02:56]} 3. d4 {[%clk 0:02:50]}  dxe4 {[%clk 0:02:56]} 4. Nxe4 {[%clk 0:02:51]}  Bf5 {[%clk 0:02:54]} 5. Ng3 {[%clk 0:02:51]}  Bg6 {[%clk 0:02:55]} 6. h4 {[%clk 0:02:51]}  h6 {[%clk 0:02:54]} 7. Nh3 {[%clk 0:02:52]}  e6 {[%clk 0:02:53]} 8. Nf4 {[%clk 0:02:52]}  Bh7 {[%clk 0:02:53]} 9. Be3 {[%clk 0:02:53]}  Bd6 {[%clk 0:02:53]} 10. Bd3 {[%clk 0:02:53]}  Bxd3 {[%clk 0:02:52]} 11. Qxd3 {[%clk 0:02:54]}  Nf6 {[%clk 0:02:51]} 12. O-O-O {[%clk 0:02:53]}  Qa5 {[%clk 0:02:50]} 13. Kb1 {[%clk 0:02:53]}  Na6 {[%clk 0:02:49]} 14. a3 {[%clk 0:02:33]}  O-O-O {[%clk 0:02:49]} 15. c4 {[%clk 0:02:12]}  e5 {[%clk 0:02:48]} 16. Nfe2 {[%clk 0:01:30]}  exd4 {[%clk 0:02:43]} 17. Bxd4 {[%clk 0:01:29]}  Kb8 {[%clk 0:02:31]} 18. Bc3 {[%clk 0:01:18]}  Qc7 {[%clk 0:02:24]} 19. Nf5 {[%clk 0:01:01]}  Bb4 {[%clk 0:02:06]} 20. Qf3 {[%clk 0:00:25]}  Bxc3 {[%clk 0:02:04]} 21. Nxc3 {[%clk 0:00:24]}  Nc5 {[%clk 0:01:05]} 22. Nxg7 {[%clk 0:00:22]}  Qe5 {[%clk 0:01:02]} 23. Rhe1 {[%clk 0:00:17]}  Rxd1+ {[%clk 0:01:02]} 24. Rxd1 {[%clk 0:00:15]}  Nfe4 {[%clk 0:01:02]} 25. Nxe4 {[%clk 0:00:12]}  Nxe4 {[%clk 0:01:01]} 26. Nh5 {[%clk 0:00:12]}  Nxf2 {[%clk 0:00:57]} 27. Qxf2 {[%clk 0:00:08]}  Qxh5 {[%clk 0:00:56]} 28. Qf4+ {[%clk 0:00:09]}  Ka8 {[%clk 0:00:56]} 29. Rd2 {[%clk 0:00:06]}  a6 {[%clk 0:00:55]} 30. Ka2 {[%clk 0:00:06]}  Rg8 {[%clk 0:00:55]} 31. Qc7 {[%clk 0:00:04]}  Qxh4 {[%clk 0:00:51]} 32. b3 {[%clk 0:00:02]}  Qe1 {[%clk 0:00:49]} 33. Rb2 {[%clk 0:00:02]}  Qe6 {[%clk 0:00:48]} 34. Qb6 {[%clk 0:00:02]}  h5 {[%clk 0:00:40]} 35. Qf2 {[%clk 0:00:03]}  h4 {[%clk 0:00:39]} 36. Re2 {[%clk 0:00:03]}  Qg4 {[%clk 0:00:37]} 37. Qe3 {[%clk 0:00:03]}  f5 {[%clk 0:00:36]} 38. Qe6 {[%clk 0:00:03]}  f4 {[%clk 0:00:35]} 39. a4 {[%clk 0:00:03]}  Qxe6 {[%clk 0:00:35]} 40. Rxe6 {[%clk 0:00:03]}  Rxg2+ {[%clk 0:00:36]} 41. Ka3 {[%clk 0:00:04]}  h3 {[%clk 0:00:36]} 42. Rh6 {[%clk 0:00:04]}  h2 {[%clk 0:00:37]} 43. Kb4 {[%clk 0:00:03]}  f3 {[%clk 0:00:36]} 44. Kc5 {[%clk 0:00:04]}  Ka7 {[%clk 0:00:36]} 45. b4 {[%clk 0:00:03]}  f2 {[%clk 0:00:37]} 46. b5 {[%clk 0:00:03]}  axb5 {[%clk 0:00:37]} 47. axb5 {[%clk 0:00:02]}  cxb5 {[%clk 0:00:37]} 48. cxb5 {[%clk 0:00:01]}  f1=Q {[%clk 0:00:35]} 49. b6+ {[%clk 0:00:02]}  Ka6 {[%clk 0:00:35]} 50. Kd6 {[%clk 0:00:02]}  Qf4+ {[%clk 0:00:35]} 0-1


[Site "https://www.chess.com"]